bitfinex/quotes_ETHUSD_20220219
["timestamp","ask_amount","ask_price","bid_price","bid_amount"]
[1645306873002,0.91437389,2745.8,2745.6,1.5479783]
[1645306873446,0.91124,2745.7,2745.6,1.5479783]
[1645306878499,0.91124,2745.7,2745.5,0.73973817]
[1645306878697,0.91124,2745.7,2745.6,1.54787159]
[1645306890745,0.91124,2745.7,2745.6,1.54684246]
[1645306892792,1.8225819,2745.7,2745.6,1.54684246]
[1645306897346,0.91124,2745.7,2745.6,1.54684246]
[1645306902098,0.91124,2745.7,2745.5,0.73973817]
[1645306902099,3.8560958,2745.7,2745.5,0.73973817]
[1645306902297,1.0,2745.6,2745.5,0.73973817]
[1645306902497,1.522,2745.6,2745.5,0.73973817]
[1645306902697,0.9116,2745.3,2744.6,4.19588172]
[1645306902897,0.522,2745.2,2744.6,4.19588172]
[1645306903353,0.70689443,2744.7,2744.6,0.69588172]
[1645306903649,3.5888147,2745.2,2744.9,0.94443771]
[1645306903852,2.44567047,2745.1,2744.9,0.94443771]
[1645306904452,4.26889157,2745.1,2744.9,0.94443771]
[1645306904652,0.62241047,2745.1,2744.9,0.94443771]
[1645306905053,1.53403047,2745.1,2744.9,0.94443771]
[1645306905655,0.91162,2745.0,2744.9,0.94443771]
[1645306906054,1.8232238,2745.0,2744.9,0.94443771]
[1645306906560,5.23150626,2745.0,2744.9,0.94443771]
[1645306907798,3.40828246,2745.0,2744.9,0.94443771]
[1645306908195,4.31990246,2745.0,2744.9,0.94443771]
[1645306908403,5.23150626,2745.0,2744.9,0.94443771]
[1645306910744,5.23150626,2745.0,2744.9,2.49260519]
[1645306912049,5.23150626,2745.0,2744.9,0.94443771]
[1645306912651,5.23150626,2745.0,2744.9,2.49262513]
[1645306912849,5.23150626,2745.0,2744.9,0.94443771]
[1645306913050,5.23150626,2745.0,2744.9,2.49266348]
[1645306915099,5.23150626,2745.0,2744.9,0.94443771]
[1645306915100,4.8322238,2745.0,2744.9,0.94443771]
[1645306915296,9.24050626,2745.0,2744.9,0.94443771]
[1645306916395,5.8322238,2745.0,2744.9,0.94443771]
[1645306919250,3.6452238,2745.0,2744.9,0.94443771]
[1645306919655,1.822,2745.0,2744.9,0.94443771]
[1645306919850,1.73362,2745.0,2744.9,0.94443771]
[1645306920052,3.6452238,2745.0,2744.9,0.94443771]
[1645306920251,3.3452238,2745.0,2744.9,0.94443771]
[1645306920450,2.3452238,2745.0,2744.9,0.94443771]
[1645306921752,2.6452238,2745.0,2744.9,0.94443771]
[1645306921995,3.6452238,2745.0,2744.9,0.94443771]
[1645306922402,6.79441932,2745.0,2744.9,0.94443771]
[1645306922594,8.0,2744.9,2744.1,0.0128218]
[1645306922800,5.4442854,2744.8,2744.1,0.0128218]
[1645306922998,2.187,2744.6,2744.1,0.0128218]
[1645306923199,2.187,2744.6,2743.4,3.6821]
[1645306923200,2.187,2744.4,2743.4,3.68537803]
[1645306923400,0.522,2744.3,2744.0,0.01282105]
[1645306923800,0.51268829,2744.1,2744.0,0.01282105]
[1645306923997,1.03468829,2744.1,2744.0,0.01282105]
[1645306924197,1.03468829,2744.1,2743.6,3.50327803]
[1645306924198,0.522,2744.1,2743.6,3.50327803]
[1645306924395,0.522,2744.1,2743.7,1.55196927]
[1645306924596,0.522,2744.1,2743.9,0.00320502]
[1645306925497,0.522,2744.1,2743.7,1.54868623]
[1645306925751,0.522,2744.1,2743.9,0.00320502]
[1645306926546,1.433858,2744.1,2743.9,0.00320502]
[1645306926749,1.433858,2744.1,2743.8,0.00327815]
[1645306926949,1.433858,2744.1,2743.9,0.00320502]
[1645306927961,1.433858,2744.1,2743.6,0.00327815]
[1645306928149,1.433858,2744.1,2743.9,0.00320502]
[1645306928350,0.91189,2744.0,2743.9,0.00320502]
[1645306928550,1.43389,2744.0,2743.9,0.00320502]
[1645306928952,4.29117214,2744.0,2743.9,0.00320502]
[1645306929249,0.91198,2743.9,2743.8,0.00320504]
[1645306929498,1.43398,2743.9,2743.8,0.00320504]
[1645306929697,3.25797,2743.9,2743.8,0.00320504]
[1645306930197,3.25797,2743.9,2743.4,0.00327815]
[1645306930395,0.9119927,2743.8,2743.7,0.00320509]
[1645306930595,7.6720022,2743.8,2743.7,0.00320509]
[1645306931395,7.6720022,2743.8,2743.3,0.01610043]
[1645306931396,7.6720022,2743.8,2743.4,1.54880092]
[1645306931599,6.2380095,2743.7,2743.2,0.50217618]
[1645306931797,0.91198,2743.6,2743.3,1.5488105]
[1645306931995,6.11371929,2743.5,2743.3,1.5488105]
[1645306932198,6.11371929,2743.5,2743.2,0.01610062]
[1645306932598,6.11371929,2743.5,2743.3,1.54883663]
[1645306932796,6.11371929,2743.5,2743.4,1.54883448]
[1645306933246,6.11371929,2743.5,2743.4,1.54880096]
[1645306933446,6.11371929,2743.5,2743.2,0.00320533]
[1645306933849,6.11371929,2743.5,2743.1,1.54889007]
[1645306933850,12.00935356,2743.5,2743.1,1.55216822]
[1645306934049,12.00935356,2743.5,2743.2,0.00320533]
[1645306934050,12.7485283,2743.4,2743.2,0.00320533]
[1645306934252,5.57400935,2743.3,2743.2,0.00320533]
[1645306934451,5.57400935,2743.3,2742.5,0.1822]
[1645306934650,5.37363427,2743.2,2742.6,1.5489837]
[1645306934847,10.74726854,2743.1,2742.7,5.57660291]
[1645306935050,10.74726854,2743.1,2742.8,1.5489837]
[1645306935452,5.59359739,2743.0,2742.8,1.5489837]
[1645306935649,10.96723166,2743.0,2742.8,1.5489837]
[1645306935851,5.45971976,2742.9,2742.8,1.5489837]
[1645306936050,10.83335403,2742.9,2742.8,1.5489837]
[1645306938603,10.83335403,2742.9,2742.1,1.3907]
[1645306938604,0.91235,2742.7,2742.1,1.2085]
[1645306938800,0.9123374,2742.6,2742.2,1.54927697]
[1645306938999,5.37363427,2742.5,2742.2,1.54927697]
[1645306939199,10.74726854,2742.5,2742.1,1.54927697]
[1645306939405,10.74726854,2742.5,2742.0,0.0128257]
[1645306939406,6.59626987,2742.4,2742.0,0.0128257]
[1645306939601,5.41153904,2742.3,2742.1,1.5494839]
[1645306939801,10.78517331,2742.3,2742.1,1.5494839]
[1645306940000,5.47541,2742.2,2741.8,0.64790411]
[1645306940200,10.84904427,2742.2,2742.1,0.00320587]
[1645306940403,5.46328664,2742.1,2741.9,1.54953276]
[1645306940645,10.2103777,2742.1,2741.9,1.54953276]
[1645306940845,2.3469614,2742.4,2741.9,1.54953276]
[1645306940846,10.12957669,2742.0,2741.9,1.54953276]
[1645306941646,10.12957669,2742.0,2741.4,1.54953276]
[1645306941846,5.29769495,2741.9,2741.4,1.54953276]
[1645306942053,13.42590335,2741.9,2741.5,1.54953276]
[1645306942250,13.42590335,2741.9,2741.6,1.54953276]
[1645306942251,5.72578726,2741.8,2741.6,1.54953276]
[1645306942448,10.35399566,2741.8,2741.7,1.54953276]
[1645306942850,12.17915976,2741.8,2741.5,1.54953276]
[1645306943046,12.17915976,2741.8,2741.7,1.54953276]
[1645306943448,11.26660976,2741.8,2741.7,1.54953276]
[1645306943946,11.26660976,2741.8,2741.6,0.00320608]
[1645306944710,1.82531,2741.7,2741.4,1.54953276]
[1645306944906,2.34731,2741.7,2741.6,0.00129256]
[1645306945203,4.17289,2741.7,2741.6,0.00129256]
[1645306945801,4.17289,2741.7,2741.3,1.54953276]
[1645306946001,14.0911071,2741.7,2741.4,1.54953276]
[1645306946201,6.08835345,2741.6,2741.5,0.00129259]
[1645306946403,6.61035345,2741.6,2741.5,0.00129259]
[1645306946603,6.61035345,2741.6,2741.5,1.55082535]
[1645306946803,5.69770345,2741.6,2741.5,0.00129259]
[1645306947005,5.69770345,2741.6,2741.1,0.69588172]
[1645306947210,4.32870576,2741.5,2741.2,1.49953276]
[1645306947404,4.32870576,2741.5,2741.4,0.00129263]
[1645306948248,4.32870576,2741.5,2741.3,0.50399763]
[1645306948647,4.32870576,2741.5,2741.3,0.0032091]
[1645306949051,1.84900404,2741.5,2741.3,0.0032091]
[1645306949455,1.84900404,2741.5,2741.0,0.69588172]
[1645306949650,2.76163404,2741.5,2741.0,0.69588172]
[1645306949857,2.76163404,2741.5,2741.3,0.00320912]
[1645306950652,2.76163404,2741.5,2741.1,0.69492368]
[1645306951052,2.76163404,2741.5,2741.3,0.00320912]
[1645306951903,2.76163404,2741.5,2741.1,1.3908054]
[1645306952105,1.1084492,2741.5,2741.3,0.00320912]
[1645306952304,0.91263,2741.5,2741.3,0.00320912]
[1645306953105,0.91263,2741.5,2740.9,0.69588172]
[1645306953106,1.43463,2741.5,2740.9,0.69588172]
[1645306953306,2.34744,2741.5,2741.3,0.00320912]
[1645306953506,1.43481,2741.5,2741.3,0.00320912]
[1645306953708,3.03518554,2741.5,2741.3,0.00320912]
[1645306953906,3.94803074,2741.5,2741.3,0.00320912]
[1645306954306,3.94803074,2741.5,2740.9,1.34124629]
[1645306954507,3.2604952,2741.5,2741.3,0.00320912]
[1645306954708,1.8257,2741.4,2741.3,0.00320912]
[1645306954910,3.309,2741.4,2741.3,9.12e-06]
[1645306955116,3.309,2741.4,2740.9,0.01283842]
[1645306955309,3.187,2741.3,2740.9,0.01283842]
[1645306955509,0.522,2741.2,2740.4,0.00911991]
[1645306955757,0.91305,2741.0,2740.4,0.00911991]
[1645306955953,2.34797,2740.9,2740.5,0.71439151]
[1645306956153,3.2609669,2740.9,2740.5,0.71439151]
[1645306956354,1.0,2740.8,2740.5,0.04022906]
[1645306956555,1.0,2740.8,2740.4,0.00911991]
[1645306956556,3.022,2740.7,2740.4,0.00911991]
[1645306956756,0.91305,2740.6,2740.4,0.00911991]
[1645306956954,0.522,2740.5,2740.4,0.00911991]
[1645306957154,2.34812,2740.5,2740.4,0.00911991]
[1645306959595,0.522,2740.5,2740.4,0.00911991]
[1645306960703,1.04529539,2740.5,2740.4,0.00911991]
[1645306961497,0.522,2740.5,2740.4,0.00911991]
[1645306961702,1.43485,2740.9,2740.4,0.00911991]
[1645306962901,1.43485,2740.9,2740.5,0.00299684]
[1645306963550,6.86329,2741.2,2740.5,0.00299684]
[1645306963551,1.82569,2741.2,2740.5,0.00299684]
[1645306963749,6.1957075,2741.6,2740.5,0.00299684]
[1645306963750,2.34741,2741.6,2740.5,0.69887856]
[1645306963954,0.9126466,2741.7,2740.6,0.69588172]
[1645306964150,3.9216,2741.8,2740.7,0.00299676]
[1645306964355,0.522,2741.9,2740.7,4.19887848]
[1645306964555,0.522,2741.9,2741.5,0.69920472]
[1645306965152,1.79441776,2742.1,2741.5,0.69920472]
[1645306965358,6.01585,2742.3,2741.5,0.69920472]
[1645306965557,6.01585,2742.3,2741.5,0.64920472]
[1645306965558,0.9125,2742.1,2741.5,0.64920472]
[1645306966559,1.43952663,2742.1,2741.5,0.64920472]
[1645306967095,1.43952663,2742.1,2741.6,1.54994877]
[1645306967396,2.35205593,2742.1,2741.6,1.54994877]
[1645306967595,1.8250293,2742.1,2741.7,1.54994877]
[1645306967799,0.91237,2742.3,2741.8,5.04994877]
[1645306967998,1.2073138,2742.5,2741.9,1.54994877]
[1645306968202,1.2073138,2742.5,2742.0,3.5]
[1645306968203,0.0030138,2742.5,2742.0,3.5]
[1645306968400,0.0030138,2742.5,2742.1,1.54994877]
[1645306968600,0.0030138,2742.5,2742.2,3.5]
[1645306968798,1.82462,2742.8,2742.2,3.5]
[1645306968799,1.82462,2742.8,2742.3,2.10188366]
[1645306968998,1.82462,2742.8,2742.4,1.54994877]
[1645306968999,0.00301235,2742.5,2742.4,1.54994877]
[1645306969200,0.00301235,2742.5,2742.4,1.54959616]
[1645306969599,0.00301235,2742.5,2742.4,1.54961713]
[1645306969801,0.00301235,2742.5,2741.7,3.5]
[1645306970005,0.91221,2742.9,2741.8,1.54961555]
[1645306970204,6.7534,2743.3,2741.9,14.7422]
[1645306970205,0.00301234,2742.6,2741.9,14.7422]
[1645306970401,0.00301234,2742.6,2742.0,1.54961555]
[1645306970655,0.7434,2743.3,2742.7,0.00602467]
[1645306970863,0.7434,2743.3,2742.8,1.54961555]
[1645306971054,0.7434,2743.3,2742.9,4.071766]
[1645306971254,0.7434,2743.3,2743.0,1.54961555]
[1645306971457,0.7434,2743.3,2743.1,3.5]
[1645306971655,0.7434,2743.3,2743.2,1.54961555]
[1645306972056,3.6476566,2744.3,2743.7,0.90899651]
[1645306972057,0.48440894,2744.2,2743.7,0.90899651]
[1645306972255,0.91191,2744.0,2743.7,0.90899651]
[1645306973055,0.91186,2743.9,2743.7,0.90899651]
[1645306973557,0.99790616,2744.4,2743.7,0.90899651]
[1645306973756,0.00301196,2743.9,2743.7,0.90899651]
[1645306974423,0.00301196,2743.9,2743.8,3.5]
[1645306974718,1.08611616,2744.8,2743.8,5.23103043]
[1645306974719,1.0,2744.8,2743.8,5.23103043]
[1645306974917,7.32,2744.9,2743.9,0.02701116]
[1645306975118,7.32,2744.9,2744.0,0.1821]
[1645306975315,7.32,2744.9,2744.1,1.54883043]
[1645306975517,0.3552,2745.1,2744.2,0.1821]
[1645306975716,0.65578611,2745.0,2744.4,0.56570166]
[1645306976519,0.91147,2745.1,2744.4,0.56570166]
[1645306976716,3.16254481,2745.8,2744.5,1.54842687]
[1645306976917,7.33116481,2745.8,2744.5,1.54842687]
[1645306977119,5.50854481,2745.8,2744.5,1.54842687]
[1645306977519,5.50854481,2745.8,2745.0,0.67395867]
[1645306977520,0.00191925,2745.3,2745.0,0.67395867]
[1645306977817,0.00191925,2745.3,2744.2,0.1821]
[1645306978017,0.00191925,2745.3,2744.3,1.54839408]
[1645306978252,0.64602701,2745.6,2744.3,1.54839408]
[1645306978651,0.00191925,2744.9,2744.3,1.54839408]
[1645306979050,0.00191925,2744.9,2744.4,0.54824239]
[1645306979250,0.00191925,2744.9,2744.4,2.80271077]
[1645306979451,1.55733701,2745.6,2744.5,1.54835566]
[1645306979650,1.55733701,2745.6,2745.0,0.67217743]
[1645306979851,0.08611616,2745.5,2745.0,0.67217743]
[1645306980051,1.55733701,2745.6,2745.0,0.67217743]
[1645306980960,0.00320697,2745.4,2745.0,0.67217743]
[1645306982002,1.55733701,2745.6,2745.0,0.67217743]
[1645306982205,0.00320702,2745.3,2745.0,0.67217743]
[1645306983205,1.55733701,2745.6,2745.0,0.67217743]
[1645306983406,0.00320704,2745.3,2745.0,0.67217743]
[1645306984404,1.55733701,2745.6,2745.0,0.67217743]
[1645306984605,0.00320704,2745.3,2745.0,0.67217743]
[1645306985653,1.55733701,2745.6,2745.0,0.67217743]
[1645306985853,0.00320704,2745.3,2745.0,0.67217743]
[1645306986755,1.55733701,2745.6,2745.0,0.67217743]
[1645306986956,0.00320704,2745.3,2745.0,0.67217743]
[1645306987855,3.8740185,2745.9,2745.0,0.67217743]
[1645306988056,3.8740185,2745.9,2745.5,0.55060315]
[1645306988256,2.86874548,2746.0,2745.5,0.55060315]
[1645306988257,1.63044548,2746.0,2745.5,0.55060315]
[1645306988666,2.84163548,2746.0,2745.5,0.55060315]
[1645306988857,2.8679,2746.1,2745.5,0.55060315]
[1645306989262,3.02982437,2746.3,2745.5,0.55060315]
[1645306989502,0.00320676,2745.9,2745.5,0.55060315]
[1645306990104,0.00320676,2745.9,2745.6,2.22367763]
[1645306990302,0.00652437,2746.3,2745.6,2.22367763]
[1645306990505,0.00320678,2745.8,2745.5,0.55060315]
[1645306991507,0.00652437,2746.5,2745.5,0.55060315]
[1645306991704,0.00652437,2746.5,2746.2,0.52658937]
[1645306991903,0.00652437,2746.6,2745.3,2.2284047]
[1645306992108,10.96697696,2746.7,2746.6,0.01304873]
[1645306992505,10.279,2746.7,2746.6,0.01304873]
[1645306994252,7.32,2746.7,2746.6,0.01304873]
[1645306997899,0.00971447,2746.8,2746.6,0.01304873]
[1645306998102,1.8221,2746.7,2746.6,0.01304873]
[1645306999505,5.3221,2746.7,2746.6,0.01304873]
[1645306999704,48.28695127,2746.6,2745.3,0.1819]
[1645306999904,48.28695127,2746.6,2745.2,4.0537]
[1645306999905,2.3443509,2746.5,2745.4,1.54794395]
[1645307000102,2.3443509,2746.5,2745.2,4.0537]
[1645307000103,3.3443509,2746.5,2745.2,4.0537]
[1645307000303,2.6443509,2746.5,2744.9,2.223157]
[1645307000503,0.59076325,2745.8,2745.2,0.63393016]
[1645307000749,1.14563054,2746.1,2745.8,1.18152649]
[1645307001048,2.96832124,2746.1,2745.8,1.18152649]
[1645307001446,2.9715279,2746.1,2745.8,1.18152649]
[1645307001847,3.8827679,2746.1,2745.8,1.18152649]
[1645307002245,3.2559307,2746.1,2745.8,1.18152649]
[1645307002449,1.8226905,2746.0,2745.8,1.18152649]
[1645307002847,0.91135,2746.0,2745.8,1.18152649]
[1645307003551,0.522,2746.1,2746.0,0.71290032]
[1645307007301,0.522,2746.1,2746.0,2.26076438]
[1645307007602,0.522,2746.1,2746.0,1.54786406]
[1645307008004,0.522,2746.1,2745.9,1.54786406]
[1645307008252,0.522,2746.1,2746.0,1.54786406]
[1645307008451,0.522,2746.1,2745.8,1.18152649]
[1645307008452,0.522,2746.1,2745.9,1.54786406]
[1645307008651,0.5249937,2746.1,2746.0,1.54786406]
[1645307008950,0.5249937,2746.1,2746.0,0.67518895]
[1645307009149,0.5249937,2746.1,2746.0,2.22305301]
[1645307009553,0.522,2746.1,2746.0,2.22305301]
[1645307011755,0.522,2746.1,2746.0,1.54786406]
[1645307012005,0.69309542,2746.2,2745.9,1.54786406]
[1645307012202,1.21808781,2746.2,2746.0,1.54786406]
[1645307012399,1.21808781,2746.2,2746.1,1.54786406]
[1645307012800,1.21808781,2746.2,2745.9,2.179902]
[1645307013101,1.21509542,2746.2,2746.0,1.54786406]
[1645307013301,3.94893542,2746.2,2746.0,1.49786406]
[1645307013504,3.95192781,2746.2,2746.0,1.49786406]
[1645307013802,4.03804397,2746.2,2746.0,1.49786406]
[1645307014000,4.03804397,2746.2,2745.9,0.69588172]
[1645307014202,1.82263,2746.0,2745.9,0.69588172]
[1645307014401,2.34463,2746.0,2745.9,0.69588172]
[1645307015002,3.2559453,2746.0,2745.8,1.87740821]
[1645307015659,0.77910587,2746.0,2745.8,1.87740821]
[1645307015854,0.78209845,2746.0,2745.8,1.87740821]
[1645307016455,1.69341375,2746.0,2745.8,1.87740821]
[1645307016657,1.69042117,2746.0,2745.9,0.69588172]
[1645307017056,1.69341375,2746.0,2745.9,0.69588172]
[1645307017261,1.69341375,2746.0,2745.8,1.87740821]
[1645307017858,1.69042117,2746.0,2745.8,1.87740821]
[1645307018259,1.69341375,2746.0,2745.8,1.87740821]
[1645307018864,1.69341375,2746.0,2745.9,0.92642544]
[1645307019060,1.69042117,2746.0,2745.9,0.69247126]
[1645307019504,1.69341374,2746.0,2745.8,1.87399775]
[1645307020300,1.69042117,2746.0,2745.8,1.87399775]
[1645307020701,1.69341374,2746.0,2745.8,1.87399775]
[1645307021502,1.69042117,2746.0,2745.8,1.87399775]
[1645307021802,1.69341374,2746.0,2745.9,0.69247126]
[1645307022204,1.69341374,2746.0,2745.8,1.18152649]
[1645307022801,1.69042117,2746.0,2745.8,1.18152649]
[1645307023003,1.69341374,2746.0,2745.8,1.18152649]
[1645307023950,1.69042117,2746.0,2745.8,1.18152649]
[1645307024150,1.69341374,2746.0,2745.8,1.18152649]
[1645307025154,1.69042117,2746.0,2745.8,1.18152649]
[1645307025453,1.69341374,2746.0,2745.8,1.18152649]
[1645307026252,1.69042117,2746.0,2745.8,1.18152649]
[1645307026653,1.69341374,2746.0,2745.8,1.18152649]
[1645307027509,1.69042117,2746.0,2745.8,1.18152649]
[1645307027705,1.69341374,2746.0,2745.8,1.18152649]
[1645307028706,1.69042117,2746.0,2745.8,1.18152649]
[1645307028907,1.69341374,2746.0,2745.8,1.18152649]
[1645307029107,0.78209844,2746.0,2745.8,1.18152649]
[1645307029908,0.77910587,2746.0,2745.8,1.18152649]
[1645307030309,0.78209844,2746.0,2745.8,1.18152649]
[1645307031150,0.77910587,2746.0,2745.8,1.18152649]
[1645307031354,0.52499257,2746.0,2745.8,1.18152649]
[1645307032352,0.522,2746.0,2745.8,1.18152649]
[1645307032551,0.52499257,2746.0,2745.8,1.18152649]
[1645307032955,0.00299257,2746.0,2745.8,1.18152649]
[1645307033352,0.00299257,2746.0,2745.9,1.54787086]
[1645307033554,2.63259,2746.5,2745.9,1.54787086]
[1645307033555,2.11059,2746.5,2745.9,1.54787086]
[1645307033753,0.00299257,2746.0,2745.9,1.54787086]
[1645307034803,2.11059,2746.5,2745.9,1.54787086]
[1645307035001,0.00299255,2746.1,2746.0,0.50780196]
[1645307035201,0.00299255,2746.1,2746.0,2.05567282]
[1645307036003,0.91103,2746.4,2746.0,2.05567282]
[1645307036206,0.0029925,2746.2,2746.1,1.54787086]
[1645307037304,0.00299246,2746.3,2746.1,1.54787086]
[1645307038382,0.91103,2746.4,2746.1,1.54787086]
[1645307038583,0.00299243,2746.3,2746.1,1.54787086]
[1645307039487,0.91103,2746.4,2746.1,1.54787086]
[1645307039782,0.00299243,2746.3,2746.1,1.54787086]
[1645307040784,0.91103,2746.4,2746.1,1.54787086]
[1645307040983,0.00299243,2746.3,2746.1,1.54787086]
[1645307042008,0.91103,2746.4,2746.1,1.54787086]
[1645307042208,0.00299243,2746.3,2746.1,1.54787086]
[1645307042509,0.00299243,2746.3,2745.8,1.18152649]
[1645307042510,3.25844243,2746.3,2745.8,1.18152649]
[1645307042709,4.16959383,2746.3,2745.8,1.18152649]
[1645307042908,7.36493228,2746.3,2745.8,1.18152649]
[1645307043113,7.36193985,2746.3,2745.8,1.18152649]
[1645307043311,8.31360173,2746.3,2745.8,1.18152649]
[1645307043507,0.0029925,2746.2,2745.8,1.18152649]
[1645307044007,0.51019731,2746.2,2745.8,1.18152649]
[1645307044407,0.50720481,2746.2,2745.8,1.18152649]
[1645307044607,0.00299252,2746.1,2745.8,1.18152649]
[1645307044809,0.91124,2746.0,2745.8,1.18152649]
[1645307045863,0.91423257,2746.0,2745.8,1.18152649]
[1645307046758,0.91124,2746.0,2745.8,1.18152649]
[1645307046960,0.91423257,2746.0,2745.8,1.18152649]
[1645307048059,0.91124,2746.0,2745.8,1.18152649]
[1645307048363,0.91423257,2746.0,2745.8,1.18152649]
[1645307049158,0.91124,2746.0,2745.8,1.18152649]
[1645307049410,0.91423257,2746.0,2745.8,1.18152649]
[1645307050411,0.91124,2746.0,2745.8,1.18152649]
[1645307050611,0.91423257,2746.0,2745.8,1.18152649]
[1645307051611,0.91124,2746.0,2745.8,1.18152649]
[1645307051810,0.91423257,2746.0,2745.8,1.18152649]
[1645307052712,0.91124,2746.0,2745.8,1.18152649]
[1645307053156,0.91423257,2746.0,2745.8,1.18152649]
[1645307053958,0.91124,2746.0,2745.8,1.18152649]
[1645307054159,0.91423257,2746.0,2745.8,1.18152649]
[1645307054758,2.73703217,2746.0,2745.8,1.18152649]
[1645307055159,2.7340396,2746.0,2745.8,1.18152649]
[1645307055361,2.73703217,2746.0,2745.8,1.18152649]
[1645307055960,0.522,2745.9,2745.8,1.18152649]
[1645307057614,0.522,2745.9,2745.8,1.17993886]
[1645307062456,1.9142326,2746.0,2745.8,1.76353669]
[1645307062457,0.91124,2746.0,2745.8,1.76353669]
[1645307062655,0.0029926,2746.0,2745.8,1.76353669]
[1645307063056,0.0029926,2746.0,2745.9,1.54786114]
[1645307063555,0.91124,2746.2,2745.9,1.54786114]
[1645307063756,0.00299255,2746.1,2745.9,1.54786114]
[1645307064807,1.86274188,2746.3,2745.9,1.54786114]
[1645307065107,0.00299253,2746.1,2745.9,1.54786114]
[1645307065907,1.86274188,2746.3,2745.9,1.54786114]
[1645307066309,0.00299253,2746.1,2745.9,1.54786114]
[1645307067113,1.86274188,2746.3,2745.9,1.54786114]
[1645307067512,0.00299253,2746.1,2745.9,1.54786114]
[1645307068359,0.95166188,2746.3,2745.9,1.54786114]
[1645307068557,0.00299253,2746.1,2745.9,1.54786114]
[1645307069658,0.95166188,2746.3,2745.9,1.54786114]
[1645307069860,0.00299253,2746.1,2745.9,1.54786114]
[1645307070462,0.91412253,2746.1,2745.9,1.54786114]
[1645307070862,0.91113,2746.1,2745.9,1.54786114]
[1645307071165,0.91412253,2746.1,2745.9,1.54786114]
[1645307071364,0.91412253,2746.1,2745.3,1.1564]
[1645307071564,0.91126,2745.9,2745.4,1.54795178]
[1645307071766,0.91126,2745.9,2745.5,1.54795178]
[1645307072007,0.91126,2745.9,2745.6,1.54795178]
[1645307072207,0.91126,2745.9,2745.7,1.54795178]
[1645307072409,0.00299269,2745.8,2745.6,0.711448]
[1645307072611,0.00299269,2745.8,2745.7,1.54791802]
[1645307073208,0.91126,2745.9,2745.7,1.54791802]
[1645307073408,0.91425265,2745.9,2745.7,1.54791802]
[1645307073809,1.82554265,2745.9,2745.7,1.54791802]
[1645307074412,2.7338442,2745.9,2745.7,1.54791802]
[1645307074709,2.73683682,2745.9,2745.7,1.54791802]
[1645307075512,2.7338442,2745.9,2745.7,1.54791802]
[1645307075754,2.73683682,2745.9,2745.7,1.54791802]
[1645307076353,2.73683682,2745.9,2745.6,0.711448]
[1645307076855,2.73683682,2745.9,2745.1,1.168]
[1645307076856,1.82272,2745.7,2745.1,1.168]
[1645307077159,0.91136,2745.5,2745.0,0.1819]
[1645307077354,1.82272,2745.5,2745.0,0.1819]
[1645307078155,0.00299289,2745.4,2745.3,0.70498563]
[1645307079256,1.82272,2745.5,2745.3,0.70498563]
[1645307079508,1.82571284,2745.5,2745.3,0.70498563]
[1645307080308,1.82272,2745.5,2745.3,0.70498563]
[1645307080705,1.82571283,2745.5,2745.3,0.70498563]
[1645307081607,1.82272,2745.5,2745.3,0.70498563]
[1645307082008,1.82571283,2745.5,2745.3,0.70498563]
[1645307082911,0.91136,2745.5,2745.3,0.70498563]
[1645307083154,0.00299283,2745.5,2745.3,0.70498563]
[1645307083955,1.82272,2745.7,2745.3,0.70498563]
[1645307084154,0.00299283,2745.5,2745.3,0.70498563]
[1645307085154,0.91124,2745.8,2745.3,0.70498563]
[1645307085556,0.00299283,2745.5,2745.3,0.70498563]
[1645307086355,1.1584,2745.9,2745.3,0.70498563]
[1645307086557,1.1584,2745.9,2745.8,0.71332708]
[1645307086759,3.25559,2746.1,2745.8,0.71332708]
[1645307087602,1.43312,2746.1,2745.8,0.71332708]
[1645307087802,0.91411257,2746.1,2745.8,0.71332708]
[1645307088804,0.91112,2746.1,2745.8,0.71332708]
[1645307089007,0.91411257,2746.1,2745.8,0.71332708]
[1645307090013,0.91112,2746.1,2745.8,0.71332708]
[1645307090211,0.91411257,2746.1,2745.8,0.71332708]
[1645307091257,0.91112,2746.1,2745.8,0.71332708]
[1645307091456,0.91411255,2746.1,2745.8,0.71332708]
[1645307091858,0.86411255,2746.1,2745.8,0.71332708]
[1645307092458,0.86112,2746.1,2745.8,0.71332708]
[1645307092662,0.86411255,2746.1,2745.8,0.71332708]
[1645307093661,0.86112,2746.1,2745.8,0.71332708]
[1645307093862,0.86411255,2746.1,2745.8,0.71332708]
[1645307094908,0.86112,2746.1,2745.8,0.71332708]
[1645307095108,0.86411256,2746.1,2745.8,0.71332708]
[1645307096110,0.86112,2746.1,2745.8,0.71332708]
[1645307096311,0.86411256,2746.1,2745.8,0.71332708]
[1645307096511,0.85687549,2746.1,2745.9,0.17018684]
[1645307096712,0.84518452,2746.1,2745.9,0.17018684]
[1645307097213,3.32792096,2746.3,2745.9,0.17018684]
[1645307097512,0.00299253,2746.1,2745.9,0.17018684]
[1645307098354,0.91104,2746.3,2745.9,0.17018684]
[1645307098752,0.00299253,2746.1,2745.9,0.17018684]
[1645307099553,0.91109,2746.2,2745.9,0.17018684]
[1645307099956,0.00299253,2746.1,2745.9,0.17018684]
[1645307100757,0.91109,2746.2,2745.9,0.17018684]
[1645307100956,0.00299253,2746.1,2745.9,0.17018684]
[1645307101158,0.00299253,2746.1,2745.9,3.67018684]
[1645307101357,0.00299253,2746.1,2745.9,0.17018684]
[1645307101556,0.00299253,2746.1,2745.9,3.67018684]
[1645307101756,0.88371627,2746.2,2745.9,0.17018684]
[1645307102008,0.88371627,2746.2,2745.9,0.15862713]
[1645307105864,0.88692283,2746.2,2745.9,0.15862713]
[1645307106864,1.82256,2746.1,2745.9,0.15862713]
[1645307107263,5.53989845,2746.1,2745.9,0.15862713]
[1645307107461,0.08611616,2746.0,2745.9,0.15862713]
[1645307107664,0.60811616,2746.0,2745.9,0.15862713]
[1645307107865,3.71733845,2746.0,2745.9,0.15862713]
[1645307108167,1.8226642,2745.8,2745.2,0.66469683]
[1645307108368,2.34465,2745.7,2745.2,0.66469683]
[1645307109162,0.15100037,2745.4,2745.2,0.66469683]
[1645307109406,0.30200074,2745.4,2745.2,0.66469683]
[1645307114266,1.82265,2745.7,2745.2,0.66469683]
[1645307114463,0.15100037,2745.4,2745.2,0.66469683]
[1645307114666,0.30200074,2745.4,2745.2,0.66469683]
[1645307114967,0.30200074,2745.4,2745.3,3.5]
[1645307117309,0.14337361,2745.4,2745.3,3.5]
[1645307119514,0.91121,2745.8,2745.3,3.5]
[1645307119915,0.14337361,2745.6,2745.3,3.5]
[1645307124714,0.14337361,2745.6,2745.2,0.5060697]
[1645307124914,0.91121,2745.8,2745.3,3.5]
[1645307125316,0.14337361,2745.5,2745.3,3.5]
[1645307127118,2.25770733,2746.2,2745.4,7.5]
[1645307127317,2.25450122,2746.2,2745.5,14.56]